[Event "2nd Late Dr Abul K C Chess-ch A 2022"]
[Site "Dhaka"]
[Date "2022.07.06"]
[Round "5.1"]
[White "Rahman, Ziaur"]
[Black "Subrota, Biswas"]
[Result "1-0"]
[ECO "A07"]
[WhiteElo "2424"]
[BlackElo "2253"]
[Annotator "TA"]
[PlyCount "141"]
[EventDate "2022.07.03"]
[EventCountry "BAN"]
[SourceTitle "playchess.com"]
[Source "ChessBase"]
[SourceQuality "1"]
[TimeControl "5400+30"]

{[%evp 16,141,7,4,4,2,7,0,0,0,0,-10,-1,-12,-12,-19,-25,-25,0,0,0,-27,-35,-75,-27,-24,-40,-46,41,0,76,76,111,92,88,116,162,112,127,31,19,15,121,131,121,112,105,93,152,130,135,0,233,233,2217,229,212,220,191,193,206,91,81,91,84,99,91,99,175,168,291,327,310,299,371,358,364,356,349,255,281,0,322,280,270,152,174,172,171,167,166,0,162,158,152,141,230,115,123,86,95,36,29973,29974,29973,29946,29947,29945,29951,29952,29941,12836,29946,607,29953,29957,29960,29961,29960,29962,29964,29965,29976,29976,29980,29981,29982,29980]} 1. Nf3 {[%emt 0:00:14]} d5 {[%emt 0:10:17]} 2. b3 {[%emt 0:01:04]} Bf5 {[%emt 0:01:44]} 3. Bb2 {[%emt 0:01:02]} e6 {[%emt 0:00:06]} 4. d3 {[%emt 0:02:40]} h6 {[%emt 0:00:42]} 5. Nbd2 {[%emt 0:00:24]} Nf6 {[%emt 0:00:19]} 6. g3 {[%emt 0:02:32]} Be7 {[%emt 0:01:04]} 7. Bg2 {[%emt 0:00:05]} O-O {[%emt 0:00:53]} 8. O-O {[%emt 0:00:11]} c6 {[%emt 0:04:02]} 9. Ne5 {[%emt 0:04:15] Recently 9.Re1 got a lot of attention.} a5 {[%emt 0:01:37] A07: Réti Opening: New York and Capablanca Systems.} 10. e4 {[%emt 0:00:51]} Bh7 {[%emt 0:00:28]} 11. a3 {[%emt 0:08:20]} Nbd7 {[%emt 0:00:32] The position is equal.} 12. Nxd7 {[%emt 0:00:55]} Nxd7 {[%emt 0:00:21]} 13. Qe2 {[%emt 0:00:40]} Bf6 {[%emt 0:05:35]} 14. e5 {[%emt 0:03:48]} Be7 {[%emt 0:00:51]} 15. Kh1 {[%emt 0:01:11]} b5 {[%emt 0:08:34]} 16. f4 {[%emt 0:05:40] [#]} Kh8 $146 {[%emt 0:03:49]} ({Predecessor:} 16... a4 17. b4 c5 18. bxc5 Bxc5 19. Nf3 b4 {½-½ (19) Gelashvili,T (2576)-Ghaem Maghami,E (2584) Dubai 2006}) 17. Nf3 {[%emt 0:01:43][%cal Bd2f3,Bf3e1,Be1g2][%mdl 32]} c5 {[%emt 0:12:44]} 18. Bc3 {[%emt 0:11:50]} Qc7 {[%emt 0:07:22]} 19. g4 {[%emt 0:03:41]} c4 {[%emt 0:07:04]} (19... a4 $17) 20. bxc4 {[%emt 0:08:42]} bxc4 {[%emt 0:00:05]} 21. d4 {[%emt 0:01:02][%cal Of4f5]} Be4 {[%emt 0:14:48] Against f5} (21... Nb6 $15) 22. Ne1 {[%emt 0:02:18]} (22. Ng1 $5 {[%cal Rg2e4]}) 22... Bxg2+ {[%emt 0:04:44]} (22... Bh7 $11 {keeps the balance.}) 23. Nxg2 $16 {[%emt 0:00:38]} f6 {[%emt 0:00:08]} 24. f5 {[%emt 0:05:48] aiming for Nf4.} fxe5 {[%emt 0:01:30]} 25. dxe5 {[%emt 0:00:16] Nf4 is the strong threat.} Bc5 {[%emt 0:03:19]} (25... Rf7 $16 {keeps fighting.}) 26. fxe6 {[%emt 0:05:32]} (26. Nf4 $18) 26... Rxf1+ {[%emt 0:00:02]} 27. Rxf1 {[%emt 0:01:05][%cal Ba1f1,Bf1f6,Bf6e6,Be6e8][%mdl 32]} Nf8 {[%emt 0:00:02]} 28. g5 {[%emt 0:08:20]} Nxe6 {[%emt 0:01:51]} (28... hxg5 $11 29. Qh5+ Nh7) 29. gxh6 {[%emt 0:01:07] Strongly threatening Nf4.} Rf8 {[%emt 0:00:03] Prevents Nf4.} 30. hxg7+ {[%emt 0:02:00]} Qxg7 {[%emt 0:00:04]} 31. Rf6 $1 {[%emt 0:01:51]} d4 {[%emt 0:02:04]} (31... Rxf6 $142 32. exf6 Qf7) 32. Rxe6 {[%emt 0:03:32]} dxc3 {[%emt 0:00:02]} 33. Qxc4 {[%emt 0:05:09]} (33. h4 $16 {And now Qh5+ would win.} Rf5 34. Qe4 (34. Qxc4 $2 Qg3 $19)) 33... Rf2 $2 {[%emt 0:05:08]} (33... Qd7 $11 {and Black is okay.} 34. Qh4+ Qh7 35. Qxh7+ Kxh7) 34. Re8+ $18 {[%emt 0:01:56]} Kh7 $2 {[%emt 0:00:39]} (34... Rf8) 35. Qh4+ $2 {[%emt 0:01:51]} (35. Qe4+ Kh6 36. Re6+ Kg5 37. Qh4+ Kf5 38. Rf6+ Kxe5 39. Rxf2 Bxf2 40. Qxf2) 35... Kg6 {[%emt 0:05:27][%cal Rf2f1]} 36. Qg4+ {[%emt 0:01:25]} Kh6 {[%emt 0:00:00][%cal Rf2f1]} 37. Re6+ $1 {[%emt 0:02:06]} Kh7 {[%emt 0:00:00][%cal Rf2f1] [#]} 38. Qh4+ {[%emt 0:00:44]} (38. Qe4+ $1 $18 {and the rest is easy.} Kh8 39. Re8+ Rf8 40. Ra8) 38... Kg8 $16 {[%emt 0:00:00][%csl Gf2][%cal Rg7g2]} 39. Re8+ {[%emt 0:00:12]} Kf7 {[%emt 0:00:00][%csl Gf2][%cal Rg7g2] [#]} 40. Re7+ $1 {[%emt 0:01:03]} Bxe7 {[%emt 0:00:00][%csl Gf2][%cal Rg7g2]} 41. Qxf2+ {[%emt 0:00:02][%mdl 4096] Endgame KQB-KQN} Ke6 {[%emt 0:00:00]} (41... Ke8 $16 {was called for.}) 42. Qb6+ $18 {[%emt 0:00:16]} Kxe5 {[%emt 0:03:30]} (42... Kf5 $142 43. Qxa5 Qxe5 44. Ne3+ Kf4 45. Qxe5+ Kxe5) 43. Qxa5+ {[%emt 0:00:04]} Ke4 {[%emt 0:00:30]} 44. Qa8+ {[%emt 0:00:02]} Kd4 {[%emt 0:00:00]} 45. Qa7+ {[%emt 0:00:19]} Kd5 {[%emt 0:00:00]} 46. Qd7+ {[%emt 0:00:30]} Ke5 {[%emt 0:00:00]} 47. Qc7+ {[%emt 0:00:59]} Kd5 {[%emt 0:00:00]} 48. Qd7+ $2 {[%emt 0:00:58]} (48. Ne3+ $18 Ke4 49. Nd1) 48... Kc5 $2 {[%emt 0:00:00][%mdl 8192]} (48... Ke5 $1 $11 {and Black stays safe.}) 49. Nf4 {[%emt 0:01:24]} Qf7 {[%emt 0:00:06]} 50. Ne6+ {[%emt 0:01:51]} (50. Qc7+ $18 Kb5 51. Qb7+ Kc5 52. Qb4+ Kc6 53. Qxc3+ Kb7 54. Qf3+ Kc8 55. Qa8+ Kd7 56. Qb7+ Kd8 57. Qb8+ Kd7 58. a4) 50... Kb6 $16 {[%emt 0:00:01][%cal Rf7f1]} 51. Qc7+ {[%emt 0:00:08]} Ka6 {[%emt 0:00:22][%cal Rf7f1]} 52. Qc6+ {[%emt 0:00:52]} Ka7 {[%emt 0:00:08][%cal Rf7f1]} 53. Qd7+ {[%emt 0:00:14]} Kb6 $1 {[%emt 0:00:10][%cal Rf7f1] [#]} 54. Qd4+ $1 {[%emt 0:00:31]} Kc6 {[%emt 0:00:42]} 55. Qe4+ {[%emt 0:00:36]} (55. Qxc3+ Kd6 56. Qd4+ Kxe6 $11) 55... Kb6 {[%emt 0:00:23]} (55... Kd7 $16 {might work better.} 56. Qd5+ Bd6 57. Nc5+ Ke7 58. Qe4+ Kd8) 56. Nf4 {[%emt 0:00:22]} ({Don't do} 56. Qd4+ Kc6) (56. Kg2 $18) 56... Bxa3 {[%emt 0:00:15]} 57. Kg2 {[%emt 0:01:19]} Bd6 {[%emt 0:00:56]} 58. Nd5+ {[%emt 0:00:12]} ({White should play} 58. Qd4+ $16 Bc5 59. Nd5+ Kc6 60. Qa4+ (60. Qf6+ Qxf6 61. Nxf6 Bb4 $16) 60... Kd6 61. Qf4+ Qxf4 62. Nxf4) 58... Kc5 $2 {[%emt 0:04:27][%mdl 8192] This costs Black the game.} (58... Ka5 $14) 59. Qb4+ {[%emt 0:00:23]} Kc6 {[%emt 0:00:00]} 60. Qb6+ {[%emt 0:00:36]} Kd7 {[%emt 0:00:00]} 61. Qb7+ {[%emt 0:00:05]} Ke6 {[%emt 0:00:00]} 62. Qxf7+ {[%emt 0:00:05]} Kxf7 {[%emt 0:00:00]} 63. Nxc3 {[%emt 0:00:05] Ne4 would kill now. KB-KN} Ke6 {[%emt 0:00:00]} 64. h3 {[%emt 0:00:09]} (64. Ne4 $142 Be7 65. Kf3 Ke5 66. Ng3 Bg5 67. Kg4 Bf4 68. h4 Be3 69. Nf5) 64... Ke5 {[%emt 0:00:00]} 65. Kf3 {[%emt 0:00:05] White mates.} Be7 {[%emt 0:00:00]} 66. Ne2 {[%emt 0:00:15]} Bd8 {[%emt 0:00:00]} 67. Kg4 {[%emt 0:00:56]} Ke4 {[%emt 0:00:00]} 68. h4 {[%emt 0:00:16][%cal Bh3h4,Bh4h5,Bh5h6][%mdl 32]} Ke3 {[%emt 0:00:00] [#]} 69. h5 $1 {[%emt 0:00:11]} Kxe2 {[%emt 0:00:04]} (69... Ke4 70. h6) 70. h6 {[%emt 0:00:03]} Ke3 {[%emt 0:00:52]} 71. Kf5 {[%emt 0:00:11] Weighted Error Value: White=0.41/Black=0.51} ({Stronger than} 71. h7 Bf6 $11) 1-0

[Event "2nd Late Dr Abul K C Chess-ch A 2022"]
[Site "Dhaka"]
[Date "2022.07.06"]
[Round "5.2"]
[White "Masum, Hossain"]
[Black "Zia, Tahsin Tajwar"]
[Result "0-1"]
[ECO "D37"]
[WhiteElo "2100"]
[BlackElo "2307"]
[Annotator "TA"]
[PlyCount "110"]
[EventDate "2022.07.03"]
[EventCountry "BAN"]
[SourceTitle "playchess.com"]
[Source "ChessBase"]
[SourceQuality "1"]
[TimeControl "5400+30"]

{[%evp 9,110,25,24,27,26,0,0,0,22,10,12,3,2,0,0,7,11,0,10,8,2,-24,-18,-8,-25,-156,-155,-146,-149,-185,-177,-181,-175,-170,-191,-181,-185,-179,-168,-192,-191,-178,-156,-158,-157,-145,-143,-180,-64,-72,-68,-152,-145,-141,-143,-141,-141,-141,-150,-150,-150,-150,-150,-150,-150,-150,-143,-148,-131,-259,-252,-360,-341,-418,-446,-462,-454,-429,-410,-688,-602,-716,-639,-716,-705,-1007,-893,-1039,-1005,-919,-792,-736,-723,-7682,-7930,-5891,-6103,-29960,-29961,-6123,-6187,-5695,-2002]} 1. d4 {[%emt 0:04:41]} d5 {[%emt 0:00:08]} 2. c4 {[%emt 0:00:01]} e6 {[%emt 0:00:07]} 3. Nc3 {[%emt 0:00:03]} Nf6 {[%emt 0:00:09]} 4. Nf3 {[%emt 0:00:19]} a6 {[%emt 0:00:24]} 5. cxd5 {[%emt 0:00:04]} exd5 {[%emt 0:00:06]} 6. Bg5 {[%emt 0:00:18] D37: Queen's Gambit Declined: 5 Bf4.} Be6 {[%emt 0:00:17]} 7. Bxf6 {[%emt 0:01:06]} Qxf6 {[%emt 0:00:07]} 8. Qb3 {[%emt 0:00:10] The position is equal.} Ra7 {[%emt 0:00:37]} 9. g3 {[%emt 0:04:38]} (9. Nxd5 Qd8 10. e4 c6) 9... Qd8 {[%emt 0:06:31] 9...Bd6 gains popularity.} 10. Bg2 {[%emt 0:00:11]} c6 {[%emt 0:00:09]} 11. O-O {[%emt 0:00:02][%cal Of3g5]} Nd7 {[%emt 0:00:29] [#]} 12. Rad1 $146 {[%emt 0:01:35]} ({Predecessor:} 12. Qc2 Be7 13. Nd2 O-O 14. Nb3 Qc8 15. e3 Nf6 16. Rac1 Bf5 17. Qd2 Qd8 18. f3 {½-½ (63) Agdestein,S (2560)-Plenca,J (2463) Nova Gorica 2020}) 12... Be7 {[%emt 0:04:29]} 13. Ne1 {[%emt 0:05:49][%cal Bf3e1,Be1d3,Bd3f4][%mdl 32]} O-O {[%emt 0:00:18]} 14. Nd3 {[%emt 0:00:02]} Qb6 {[%emt 0:09:49]} 15. Nf4 {[%emt 0:02:21]} Qxb3 {[%emt 0:01:05]} 16. axb3 {[%emt 0:00:02]} Bf5 {[%emt 0:14:13]} 17. Ncxd5 {[%emt 0:03:21]} cxd5 $17 {[%emt 0:00:32]} 18. Nxd5 {[%emt 0:00:02]} Bd8 {[%emt 0:02:51]} 19. e4 {[%emt 0:00:08]} Be6 {[%emt 0:00:42][%cal Bf5e6,Be6b3,Bb3a4,Ba4b5][%mdl 32]} 20. e5 {[%emt 0:00:01]} Nb6 {[%emt 0:03:04]} 21. Ne3 {[%emt 0:21:29]} Bxb3 {[%emt 0:09:08]} 22. Rd3 {[%emt 0:00:04]} Ba4 {[%emt 0:00:39]} 23. Rc1 {[%emt 0:01:36]} g6 {[%emt 0:04:21]} 24. f4 {[%emt 0:00:53]} Bb5 {[%emt 0:04:00]} 25. Rd2 {[%emt 0:00:46]} Na4 {[%emt 0:14:23]} 26. b3 {[%emt 0:03:00]} Ba5 {[%emt 0:00:38]} 27. Rdc2 {[%emt 0:01:02]} ({Avoid the trap} 27. Ra2 $2 Nc3 $1 28. Rd2 Ne2+ 29. Rxe2 Bxe2 $19) 27... Nb6 {[%emt 0:01:45]} 28. Rd1 {[%emt 0:02:09]} Raa8 {[%emt 0:02:41]} ({Black should try} 28... Rc8 $19 {...Rxc2 is the strong threat.} 29. Rc5 Rca8) 29. Bxb7 $15 {[%emt 0:00:54]} Rab8 {[%emt 0:00:01] Black converts the advantage convincingly.} 30. Be4 {[%emt 0:02:25]} ({White should play} 30. Bxa6 $1 $15 Bxa6 31. Ra2) 30... Rfc8 $17 {[%emt 0:00:47]} 31. Kf2 {[%emt 0:00:24]} Rxc2+ {[%emt 0:00:58]} 32. Nxc2 {[%emt 0:00:24]} Rc8 {[%emt 0:01:26][%cal Ob6d5]} 33. b4 {[%emt 0:00:30] [#]} Na4 $1 {[%emt 0:00:07] And now ...Nc3 would win.} 34. bxa5 {[%emt 0:00:44] Hoping for Re1.} Nc3 $1 $36 {[%emt 0:20:29][%csl LRd1,LRe4][%mdl 2048] Black has strong initiative.} 35. Bf3 {[%emt 0:00:18] Threatens to win with Re1.} Nxd1+ {[%emt 0:00:00]} 36. Bxd1 {[%emt 0:00:02][%mdl 4096] Endgame [#] KRB-KBN} Ba4 $1 {[%emt 0:00:00] Black is more active.} 37. Ne3 {[%emt 0:00:01]} Bxd1 {[%emt 0:00:00]} 38. Nxd1 {[%emt 0:00:01] KR-KN} Rc1 {[%emt 0:00:00]} 39. Ne3 {[%emt 0:01:30]} (39. Ke2 $17 {might work better.}) 39... Ra1 $19 {[%emt 0:00:00]} 40. g4 {[%emt 0:03:33]} (40. Nc4 {was the only defense.} Ra4 41. Nb6 Rxd4 42. Ke3) 40... Ra4 {[%emt 0:00:00]} 41. d5 {[%emt 0:04:46]} Rxf4+ {[%emt 0:00:00]} 42. Ke2 {[%emt 0:00:01]} Ra4 {[%emt 0:00:00]} 43. Kd3 {[%emt 0:00:32]} Rxa5 {[%emt 0:00:00]} 44. g5 {[%emt 0:00:12]} (44. d6 $142 Kf8 45. Ke4) 44... Kf8 {[%emt 0:00:00]} 45. Kd4 {[%emt 0:00:31]} Ke7 {[%emt 0:00:00]} 46. Nc4 {[%emt 0:01:34]} Ra2 {[%emt 0:00:00]} 47. Nd6 {[%emt 0:01:33]} Rxh2 {[%emt 0:00:00]} 48. Nb7 {[%emt 0:00:01]} Rb2 {[%emt 0:00:00]} 49. d6+ {[%emt 0:00:08]} Kd7 {[%emt 0:00:00]} 50. Nc5+ {[%emt 0:00:02]} Kc6 {[%emt 0:00:00]} 51. Nd3 {[%emt 0:05:09] Inhibits Rb4+.} Rb5 {[%emt 0:00:00]} 52. Kc4 {[%emt 0:00:22]} a5 {[%emt 0:00:49][%cal Ba6a5,Ba5a4,Ba4a3][%mdl 32]} 53. Kd4 {[%emt 0:02:09]} a4 {[%emt 0:00:46]} 54. Kc4 {[%emt 0:00:06]} a3 {[%emt 0:01:18] ( -> ...Rb1)} 55. d7 {[%emt 0:00:32]} Rb8 {[%emt 0:00:30] Weighted Error Value: White=0.64/Black=0.08 (flawless)} 0-1

[Event "2nd Late Dr Abul K C Chess-ch A 2022"]
[Site "Dhaka"]
[Date "2022.07.06"]
[Round "5.4"]
[White "Ahmed, Shafiq"]
[Black "Manon, Reja Neer"]
[Result "1-0"]
[ECO "B12"]
[WhiteElo "2100"]
[BlackElo "2089"]
[Annotator "TA"]
[PlyCount "149"]
[EventDate "2022.07.03"]
[EventCountry "BAN"]
[SourceTitle "playchess.com"]
[Source "ChessBase"]
[SourceQuality "1"]
[TimeControl "5400+30"]

{[%evp 9,149,0,0,0,19,18,34,34,22,-21,-13,-15,-6,-15,0,0,17,-40,-41,-116,-14,-36,-44,-57,-6,-133,-131,-130,-128,-154,-131,-131,-131,-139,-130,-188,-193,-229,-220,-209,-219,-220,-196,-186,-192,-194,-202,-201,-195,-199,-206,-198,-191,-253,-235,-190,-146,-141,0,0,0,0,0,0,196,8,8,0,0,0,0,0,0,0,0,0,0,0,8,0,0,0,0,0,539,528,522,515,508,495,480,497,491,468,466,456,476,438,442,380,343,343,336,293,300,300,293,249,820,789,574,336,333,325,325,331,336,329,321,321,321,321,311,293,1557,1335,927,862,12833,11529,29984,29973,29981,29982,29983,29984,29988,29978,29989,29990,29990,29991]} 1. e4 {[%emt 0:00:45]} c6 {[%emt 0:00:19]} 2. d4 {[%emt 0:00:36]} d5 {[%emt 0:00:05]} 3. e5 {[%emt 0:00:39]} Bf5 {[%emt 0:00:23]} 4. c3 {[%emt 0:00:41]} e6 {[%emt 0:00:15]} 5. Bd3 {[%emt 0:00:55]} Ne7 {[%emt 0:01:31][%cal Bg8e7,Be7f5,Bf5h4][%mdl 32]} 6. Ne2 {[%emt 0:00:12] B12: Caro-Kann: Advance Variation.} Nd7 {[%emt 0:02:06]} 7. O-O {[%emt 0:01:40] [#]} Qc7 $146 {[%emt 0:04:09]} ({Predecessor:} 7... h5 8. Na3 Qb6 9. Nc2 c5 10. b4 cxd4 11. cxd4 Rc8 12. a4 h4 13. b5 h3 {1-0 (34) Kotlyanskiy,E (2299)-Hyllengren,A (2281) ICCF email 2010}) 8. Bxf5 {[%emt 0:10:00] White is slightly better.} Nxf5 {[%emt 0:00:16]} 9. g4 {[%emt 0:00:08]} (9. Ng3) 9... Nh4 {[%emt 0:01:14]} 10. Ng3 {[%emt 0:00:03]} Be7 {[%emt 0:01:58] Inhibits Bg5.} 11. f4 {[%emt 0:01:53]} O-O-O {[%emt 0:04:49]} 12. f5 {[%emt 0:02:16]} Rde8 {[%emt 0:19:14][%cal Oh7h5]} 13. fxe6 {[%emt 0:05:49]} (13. a4) (13. a4 $11) 13... fxe6 $15 {[%emt 0:01:19]} 14. Nh5 {[%emt 0:02:29]} (14. Rf7 Nxe5 15. Bf4 Nhg6) (14. Nd2) (14. Rf7 $2 Nxe5 $1 15. Rf1 Nd7 $19) (14. Nd2 $15) 14... Rhg8 {[%emt 0:05:14]} (14... Ref8 15. Nd2 (15. Nxg7 Nxe5 16. Nd2 Rxf1+ 17. Qxf1 Nxg4) 15... Rxf1+ 16. Nxf1 g6) ({Black should try} 14... Ref8 $17 {[%cal Od7e5]} 15. Kh1 (15. Nxg7 $2 Nxe5 16. Nd2 Rxf1+ 17. Qxf1 Nxg4 $19) 15... Qb6) 15. Bf4 {[%emt 0:21:41]} (15. Rf7 Rgf8 16. Rxg7 Nxe5) (15. Rf7 Rgf8 16. Rxg7 Nxe5 $1 $17 {[%mdl 512]}) 15... Qb6 {[%emt 0:03:45]} (15... Ref8 {is interesting.} 16. Nd2 Qb6 17. b4 a5) 16. b4 {[%emt 0:00:17]} g6 {[%emt 0:01:30]} (16... a5 17. a3 Qa6) ({Better is} 16... a5 $15 17. a3 Qa6) 17. Ng3 {[%emt 0:00:52]} (17. Nf6 Nxf6 18. exf6 Bxf6 19. Bg3) (17. Nf6 $1 $11 Nxf6 18. exf6 Bxf6 19. a4) 17... g5 $1 $36 {[%emt 0:01:36][%mdl 2048] Keeping White busy.} 18. Be3 {[%emt 0:01:19]} Nxe5 {[%emt 0:00:21]} 19. Nd2 {[%emt 0:01:08]} Ref8 {[%emt 0:17:15]} 20. Qe2 {[%emt 0:01:44]} Neg6 {[%emt 0:00:56]} 21. Nh5 {[%emt 0:03:46]} Qc7 {[%emt 0:03:45]} 22. c4 {[%emt 0:04:51]} (22. Bf2) (22. Bf2 $17) 22... Kb8 $19 {[%emt 0:05:00]} (22... Bxb4 23. Nf6) (22... Bxb4 23. Nf6 $11) 23. c5 {[%emt 0:02:07]} e5 $1 {[%emt 0:03:25]} 24. Rxf8+ {[%emt 0:07:41]} Rxf8 {[%emt 0:01:37]} (24... Nxf8 25. dxe5 Ne6 26. Rf1 $11 (26. Nf6 Rf8 $17)) 25. Rf1 {[%emt 0:00:26]} e4 {[%emt 0:05:14]} 26. Rxf8+ {[%emt 0:00:49]} Nxf8 {[%emt 0:00:02]} (26... Bxf8 27. Bxg5 Be7 28. Be3 $15) 27. Qf2 {[%emt 0:01:19]} Qd7 {[%emt 0:01:17]} 28. h3 {[%emt 0:00:42]} Qe6 {[%emt 0:01:11]} 29. Bxg5 {[%emt 0:01:15]} Bxg5 {[%emt 0:03:25]} 30. Qxf8+ {[%emt 0:00:07]} Qc8 {[%emt 0:01:25]} 31. Qd6+ {[%emt 0:03:37]} (31. Qxc8+ {was worth a try.} Kxc8 32. Nb3) 31... Ka8 {[%emt 0:01:28]} 32. Nb3 {[%emt 0:00:40]} e3 {[%emt 0:00:55]} 33. Ng7 {[%emt 0:06:04] Inhibits Qe8.} e2 {[%emt 0:07:06]} (33... a5 $17 {Hoping for ...h5.} 34. Kf1 axb4) 34. Kf2 $11 {[%emt 0:00:43]} Qg8 {[%emt 0:00:03]} 35. Qe6 {[%emt 0:04:14] Inhibits Qf7+.} Qf8+ {[%emt 0:02:09]} 36. Nf5 {[%emt 0:00:14] Really sharp!} h5 $2 {[%emt 0:00:43]} (36... a6 $11) 37. Kxe2 $2 {[%emt 0:01:10]} (37. b5 $1 $18 {[%cal Rb5c6]}) 37... hxg4 {[%emt 0:00:03]} 38. Nxh4 {[%emt 0:05:39]} Bxh4 {[%emt 0:00:11]} 39. Qxg4 $18 {[%emt 0:00:31][%mdl 4096] Endgame KQB-KQN} Qf2+ {[%emt 0:00:32]} 40. Kd3 {[%emt 0:00:18][%cal Rg4c8]} Qf1+ {[%emt 0:00:25]} 41. Kc3 {[%emt 0:04:35][%cal Rg4c8]} Be1+ {[%emt 0:00:42]} 42. Kb2 {[%emt 0:00:08][%cal Rg4c8]} a6 {[%emt 0:00:36]} 43. Na5 {[%emt 0:02:19]} Ka7 {[%emt 0:01:04]} 44. a3 {[%emt 0:02:52]} Qf2+ {[%emt 0:00:20]} 45. Kb3 {[%emt 0:00:35][%cal Oa5c6] Black must now prevent Nxc6+!} Qe3+ {[%emt 0:00:49]} (45... Qd2 $2 46. Nxc6+ $1 {[%mdl 512]} (46. Qc8 Qc3+ 47. Ka4 Qc2+ 48. Nb3 Bxb4 49. Qf8 Qb2) 46... bxc6 47. Qd7+ Kb8 48. Qd8+ (48. Qxc6 Qd1+ 49. Kb2 Qxd4+ 50. Kb3 Qd1+ 51. Kb2 Qe2+ 52. Kb3 Qd3+ 53. Ka4 Bg3 $15) 48... Kb7 49. Qd7+ Kb8 50. Qd8+ (50. Qxc6 Qd1+ 51. Kb2 Qe2+ 52. Kb3 Qd1+ 53. Kb2 Qe2+ 54. Kb3 Qd1+ $11) 50... Kb7 51. Qb6+ Kc8 52. Qxc6+ Kd8 53. Qxd5+ Ke7 54. Qe4+ Kd8 55. Qd5+ Ke7 56. Qe5+ Kf7 57. Ka4 $18) 46. Ka4 {[%emt 0:00:22]} Qd3 $2 {[%emt 0:00:58][%mdl 8192] [#]} (46... Qe7 $11 {and Black has nothing to worry.}) 47. Nxc6+ $1 {[%emt 0:00:15][%mdl 512]} bxc6 {[%emt 0:00:10]} 48. Qd7+ {[%emt 0:00:03]} Kb8 {[%emt 0:00:13]} 49. Qd8+ {[%emt 0:00:03]} Kb7 {[%emt 0:00:37] ( -> ...Qc2+)} 50. Qb6+ {[%emt 0:00:14][%mdl 64] Deflection} Ka8 {[%emt 0:00:32] Threatens to win with ...Qb5+.} 51. Qxc6+ {[%emt 0:00:03]} Kb8 {[%emt 0:00:08]} 52. Qe8+ {[%emt 0:01:00]} Kb7 {[%emt 0:00:15]} 53. Qe7+ {[%emt 0:00:43]} ({Less strong is} 53. Qxe1 Qb5+ 54. Kb3 Qc4+ 55. Kb2 Qxd4+ 56. Qc3 Qg1 $18) 53... Kb8 {[%emt 0:00:37]} 54. Qxe1 {[%emt 0:00:29] White wants to mate with Qe8+. KQ-KQ} Qb5+ {[%emt 0:00:01]} 55. Kb3 {[%emt 0:00:13]} Qc4+ {[%emt 0:00:01]} 56. Kb2 {[%emt 0:00:24]} Qxd4+ {[%emt 0:00:01]} 57. Qc3 {[%emt 0:00:25]} Qf2+ {[%emt 0:00:06]} 58. Qc2 {[%emt 0:00:13]} Qf6+ {[%emt 0:00:18]} (58... Qe3 59. h4 d4) 59. Kb3 {[%emt 0:01:01]} Qf3+ {[%emt 0:00:42]} 60. Qc3 {[%emt 0:00:07]} Qd1+ {[%emt 0:00:09]} 61. Kb2 {[%emt 0:01:48]} Qe2+ {[%emt 0:00:38]} 62. Kc1 {[%emt 0:00:31]} Qf1+ {[%emt 0:00:33]} 63. Kc2 {[%emt 0:00:03] Strongly threatening Qe5+.} Qe2+ {[%emt 0:01:10] [#]} 64. Qd2 $1 {[%emt 0:00:14]} Qc4+ {[%emt 0:00:13] [#]} 65. Kb2 $1 {[%emt 0:00:23]} d4 {[%emt 0:00:07]} 66. h4 {[%emt 0:00:11][%cal Bh3h4,Bh4h5,Bh5h6][%mdl 32]} d3 $2 {[%emt 0:00:21]} (66... a5 67. Qc2 Qf1 68. bxa5 Kc8) 67. h5 {[%emt 0:00:05] h6 is the strong threat.} Qd4+ {[%emt 0:00:35]} 68. Kb3 {[%emt 0:00:03]} a5 {[%emt 0:02:38]} 69. h6 {[%emt 0:00:39] Intending Qh2+ and mate.} Kc7 {[%emt 0:00:50]} 70. h7 {[%emt 0:01:47] White mates.} a4+ {[%emt 0:00:57]} 71. Kxa4 {[%emt 0:00:12]} Qd7+ {[%emt 0:00:02]} 72. b5 {[%emt 0:00:44]} Qxh7 {[%emt 0:01:13]} 73. Qf4+ {[%emt 0:00:13]} Kb7 {[%emt 0:00:37]} 74. c6+ {[%emt 0:00:07]} Kb6 {[%emt 0:00:06]} 75. Qd4+ {[%emt 0:00:35] Never resign too early!  Weighted Error Value: White=0.23 (precise) /Black=0.34} 1-0